bitfinex-derivatives/quotes_ETHF0:USTF0_20250620
["timestamp","ask_amount","ask_price","bid_price","bid_amount"]
[1750432725377,0.86775781,2504.8,2504.7,0.79843]
[1750432725674,2.07271919,2504.8,2504.7,0.79843]
[1750432725872,0.79845,2504.7,2504.6,0.79843]
[1750432726072,0.06933781,2504.8,2504.7,0.79843]
[1750432726473,0.06933781,2504.8,2504.7,4.00623]
[1750432726867,33.26624,2505.3,2505.2,0.79827]
[1750432727069,34.47145156,2505.3,2505.2,0.79827]
[1750432727279,8.96545156,2505.3,2505.2,0.79827]
[1750432727474,0.7983,2505.2,2505.1,0.79829]
[1750432727673,0.7983,2505.1,2505.0,3.2078]
[1750432727975,0.79836,2504.9,2504.8,0.6347]
[1750432728279,0.79836,2504.9,2504.8,1.4331]
[1750432728976,0.79836,2505.0,2504.9,0.79835]
[1750432729568,0.79836,2504.9,2504.8,2.68307]
[1750432729766,0.79836,2504.9,2504.8,0.6347]
[1750432730772,0.7984,2504.8,2504.7,4.0062]
[1750432730966,26.3014,2504.8,2504.7,4.0062]
[1750432731179,27.49911442,2504.8,2504.7,3.2078]
[1750432731780,28.76231442,2504.8,2504.7,3.2078]
[1750432731983,27.5646,2504.8,2504.7,3.2078]
[1750432732280,27.498817,2504.8,2504.7,3.2078]
[1750432732584,27.498817,2504.8,2504.7,4.00623]
[1750432733073,1.197417,2504.8,2504.7,4.00623]
[1750432733386,26.29936,2504.9,2504.8,0.7984]
[1750432733569,26.69861304,2504.9,2504.8,0.7984]
[1750432733770,25.501,2504.9,2504.8,0.7984]
[1750432733976,25.501,2504.9,2504.8,2.7593]
[1750432734481,0.79836,2504.9,2504.8,1.4666]
[1750432734982,33.32968781,2505.0,2504.9,0.79836]
[1750432735478,32.53133781,2505.0,2504.9,0.79836]
[1750432736281,25.56933781,2505.0,2504.9,0.79836]
[1750432736475,25.56933781,2505.0,2504.9,2.16036]
[1750432736983,26.36766781,2505.0,2504.9,2.16036]
[1750432737176,25.56933781,2505.0,2504.9,2.16036]
[1750432737984,25.56933781,2505.0,2504.9,0.79836]
[1750432737985,26.36766781,2505.0,2504.9,0.79836]
[1750432738879,0.79836,2504.9,2504.8,0.79837]
[1750432739191,0.7984,2504.8,2504.7,4.00623]
[1750432739479,25.497,2504.8,2504.7,3.2078]
[1750432739688,25.497,2504.8,2504.7,4.00623]
[1750432739984,25.497,2505.0,2504.9,0.79836]
[1750432740188,26.29533,2505.0,2504.9,0.79836]
[1750432740580,0.79836,2504.9,2504.7,3.2078]
[1750432740776,7.7594,2504.8,2504.7,3.2078]
[1750432740980,9.1219,2504.8,2504.7,3.2078]
[1750432741176,10.32070681,2504.8,2504.7,3.2078]
[1750432742284,0.79849,2504.5,2504.4,3.2078]
[1750432742489,26.29349,2504.5,2504.4,4.00632]
[1750432742686,26.29349,2504.5,2504.4,3.2078]
[1750432742887,26.29349,2504.5,2504.4,4.00632]
[1750432743284,1.3625,2504.8,2504.4,3.2078]
[1750432743492,1.1985165,2504.7,2504.6,0.79846]
[1750432743686,25.494,2504.8,2504.7,0.79843]
[1750432743987,1.19874971,2504.8,2504.7,0.79843]
[1750432744290,26.69380346,2504.8,2504.5,1.3509]
[1750432744486,0.79845,2504.7,2504.6,0.79844]
[1750432744686,0.79845,2504.7,2504.4,3.2078]
[1750432744687,26.2934,2504.8,2504.7,0.79843]
[1750432744886,26.69387296,2504.8,2504.7,0.79843]
[1750432745093,27.49226296,2504.8,2504.7,0.79843]
[1750432745890,26.69387296,2504.8,2504.7,0.79843]
[1750432746091,2.06660077,2504.8,2504.7,0.79843]
[1750432746390,26.76221077,2504.8,2504.7,0.79843]
[1750432746691,25.56333781,2504.8,2504.7,0.79843]
[1750432747593,27.56265355,2504.8,2504.7,0.79843]
[1750432748093,2.06865355,2504.8,2504.7,0.79843]
[1750432748591,1.27026355,2504.8,2504.7,0.79843]
[1750432749189,2.06865355,2504.8,2504.7,0.79843]
[1750432749391,1.27026355,2504.8,2504.7,0.79843]
[1750432749590,0.06933781,2504.8,2504.7,0.79843]
[1750432749987,0.06933781,2504.8,2504.7,4.00623]
[1750432751088,3.2078,2505.2,2505.1,0.7983]
[1750432751284,4.41012789,2505.2,2505.1,0.7983]
[1750432751594,2.00059789,2505.2,2505.1,0.7983]
[1750432751793,0.79836,2505.0,2504.9,0.79832]
[1750432752194,2.00068789,2505.0,2504.9,0.79832]
[1750432752598,0.79836,2504.9,2504.7,3.2078]
[1750432752789,3.19891844,2504.8,2504.5,0.79846]
[1750432752985,2.52768844,2504.7,2504.6,0.79846]
[1750432753190,1.20288844,2504.7,2504.6,0.79846]
[1750432753389,2.00131844,2504.7,2504.6,0.79846]
[1750432753893,0.79848,2504.6,2504.5,0.79846]
[1750432754093,27.48936844,2504.6,2504.5,0.79846]
[1750432754492,27.48934844,2504.6,2504.5,0.79846]
[1750432755697,26.69088844,2504.6,2504.5,0.79846]
[1750432756203,25.488,2504.6,2504.5,0.79846]
[1750432757695,26.28646,2504.6,2504.5,0.79846]
[1750432758897,25.488,2504.6,2504.5,0.79846]
[1750432759101,0.79844,2504.7,2504.6,0.79846]
[1750432759297,33.23444,2504.7,2504.6,0.79846]
[1750432759501,34.43429695,2504.7,2504.6,0.79846]
[1750432759995,1.19985695,2504.7,2504.6,0.79846]
[1750432760200,1.19989907,2504.7,2504.6,0.79846]
[1750432760402,2.34404721,2505.4,2505.3,0.79824]
[1750432760603,27.48112268,2505.4,2505.3,0.79824]
[1750432760802,1.99812268,2505.4,2505.3,0.79824]
[1750432761002,27.48112268,2505.4,2505.3,0.79824]
[1750432761191,1.99812268,2505.4,2505.3,0.79824]
[1750432761398,27.48110268,2505.4,2505.3,0.79824]
[1750432761798,26.68290268,2505.4,2505.3,0.79824]
[1750432761997,1.19990268,2505.4,2505.3,0.79824]
[1750432762503,26.27914,2505.6,2505.5,0.79817]
[1750432762800,26.68038344,2505.6,2505.2,3.2078]
[1750432763004,0.79824,2505.3,2505.2,4.00603]
[1750432763304,37.12054586,2505.6,2505.3,0.79824]
[1750432763305,1.99761344,2505.4,2505.3,0.79824]
[1750432763602,1.99711428,2505.4,2505.3,0.79824]
[1750432763804,0.79824,2505.3,2505.2,4.00605]
[1750432764106,1.99712428,2505.3,2505.2,0.79825]
[1750432764304,0.79827,2505.2,2505.1,0.79829]
[1750432764503,0.79832,2505.1,2505.0,0.79831]
[1750432764701,0.79833,2505.0,2504.9,4.00614]
[1750432765006,0.79832,2505.1,2505.0,0.7983]
[1750432765407,0.79822,2505.4,2505.3,0.7982]
[1750432765607,25.478,2505.4,2505.3,0.79824]
[1750432765903,1.99667687,2505.4,2505.3,0.79824]
[1750432766101,27.47267687,2505.4,2505.3,0.79824]
[1750432766897,1.99667687,2505.4,2505.3,0.79824]
[1750432768107,1.19847687,2505.4,2505.3,0.79824]
[1750432768505,1.99667687,2505.4,2505.3,1.46554]
[1750432768700,1.99667687,2505.4,2505.3,0.6673]
[1750432769007,1.99667687,2505.4,2505.3,1.46554]
[1750432769205,0.79824,2505.3,2505.2,4.00606]
[1750432769404,0.79824,2505.3,2505.2,0.79827]
[1750432769610,0.79824,2505.3,2504.9,0.79834]
[1750432769611,0.79833,2505.0,2504.9,0.79834]
[1750432769804,0.79843,2504.7,2504.6,4.00622]
[1750432770005,26.27043,2504.7,2504.6,4.00622]
[1750432770201,26.27043,2504.7,2504.6,3.2078]
[1750432770504,0.06933781,2504.6,2504.5,0.79846]
[1750432770812,0.86779781,2504.6,2504.5,0.79846]
[1750432771210,0.06933781,2504.6,2504.5,0.79846]
[1750432771610,0.86779781,2504.6,2504.5,0.79846]
[1750432772706,0.06933781,2504.6,2504.5,0.79846]
[1750432773705,25.472,2504.7,2504.6,0.79846]
[1750432774013,4.4769,2504.9,2504.8,0.79839]
[1750432774014,3.2078,2504.9,2504.8,0.79839]
[1750432774313,36.82899773,2504.9,2504.7,0.7984]
[1750432774521,1.99662773,2504.8,2504.7,0.7984]
[1750432775309,33.21843,2504.8,2504.7,0.7984]
[1750432775508,34.41664594,2504.8,2504.7,0.7984]
[1750432777512,1.99664594,2504.8,2504.7,0.7984]
[1750432777809,34.41564594,2504.8,2504.7,0.7984]
[1750432779811,0.79845,2504.7,2504.6,0.79843]
[1750432780514,0.79852,2504.5,2504.4,0.79849]
[1750432780704,26.26252,2504.5,2504.4,0.79849]
[1750432781314,25.464,2504.5,2504.4,0.79849]
[1750432781912,26.26249,2504.5,2504.4,0.79849]
[1750432782814,25.464,2504.5,2504.4,0.79852]
[1750432783311,25.464,2504.5,2504.3,4.67363]
[1750432783510,0.79852,2504.4,2504.3,4.67363]
[1750432783712,0.79862,2504.1,2504.0,3.2078]
[1750432783913,0.79871,2503.8,2503.7,3.2078]
[1750432784212,0.79875,2503.7,2503.6,0.79877]
[1750432784512,2.0219885,2503.7,2503.6,0.79877]
[1750432784709,0.79883,2503.5,2503.4,0.79881]
[1750432784908,26.25783,2503.5,2503.4,0.79881]
[1750432785106,26.25783,2503.5,2503.3,3.2078]
[1750432785107,25.459,2503.5,2503.3,4.00664]
[1750432785313,0.79884,2503.4,2503.3,4.00664]
[1750432785518,37.73339586,2503.5,2503.1,0.79892]
[1750432785717,0.79891,2503.2,2503.1,0.79892]
[1750432785915,26.26091,2503.2,2503.1,0.79892]
[1750432787316,26.26091,2503.2,2502.9,3.2078]
[1750432787317,25.462,2503.2,2502.9,3.2078]
[1750432787518,26.26093,2503.2,2503.1,0.79894]
[1750432787715,0.79895,2503.1,2503.0,0.79895]
[1750432787915,25.462,2503.2,2502.9,3.2078]
[1750432787916,0.79897,2503.0,2502.9,3.2078]
[1750432788214,26.26091,2503.2,2503.1,0.79894]
[1750432789114,26.26091,2503.2,2502.9,3.2078]
[1750432789115,0.79897,2503.0,2502.9,3.2078]
[1750432789320,0.79917,2502.4,2502.2,3.2078]
[1750432789615,0.79922,2502.2,2502.1,0.79923]
[1750432789812,0.7992,2502.3,2502.2,0.79921]
[1750432790013,26.26018,2502.4,2502.3,0.79919]
[1750432790907,25.461,2502.4,2502.3,0.79919]
[1750432791817,0.7992,2502.3,2502.2,0.79921]
[1750432792116,0.7992,2502.3,2502.1,3.2078]
[1750432792117,7.73918,2502.4,2502.3,0.79919]
[1750432792310,25.463,2502.3,2502.1,0.79924]
[1750432792516,0.79924,2502.2,2501.8,3.2078]
[1750432792819,0.79926,2502.1,2502.0,0.79927]
[1750432793017,26.8453,2502.3,2501.8,3.2078]
[1750432793218,32.402,2502.2,2502.1,4.00706]
[1750432794208,4.00694,2502.5,2502.1,3.2078]
[1750432794419,25.46,2502.4,2502.1,5.2059]
[1750432794612,3.2078,2502.5,2502.4,0.79916]
[1750432794921,32.405,2502.5,2502.4,4.00696]
[1750432795221,32.405,2502.5,2502.4,0.79916]
[1750432798317,1.49109,2502.7,2502.6,0.7991]
[1750432798519,33.89309,2502.7,2502.6,0.7991]
[1750432798720,33.094,2502.7,2502.3,1.3378]
[1750432798918,0.692,2502.7,2502.6,0.7991]
[1750432799118,33.20008,2502.7,2502.6,0.79908]
[1750432799323,32.401,2502.7,2502.6,0.79908]
[1750432800231,0.6753,2503.1,2503.0,0.79897]
[1750432800421,0.799,2503.0,2502.9,0.79899]
[1750432800618,25.459,2503.1,2502.8,0.79902]
[1750432800816,0.799,2502.9,2502.8,0.79902]
[1750432801127,25.459,2503.0,2502.7,0.6505]
[1750432801316,0.79894,2503.1,2503.0,0.79894]
[1750432801521,33.19794,2503.1,2503.0,0.79894]
[1750432801820,3.2078,2503.3,2503.1,0.79891]
[1750432802015,32.4,2503.2,2503.1,0.79891]
[1750432802412,0.79896,2503.1,2503.0,0.79895]
[1750432803424,0.86825781,2503.2,2503.1,0.79894]
[1750432803619,7.81e-06,2503.2,2503.1,11.07628586]
[1750432803819,7.81e-06,2503.2,2503.1,17.38088586]
[1750432804012,25.455,2504.0,2503.2,1.99722]
[1750432804220,25.455,2504.0,2503.4,1.99711]
[1750432804221,7.7407,2503.9,2503.4,1.99711]
[1750432804420,7.7407,2503.9,2503.8,0.79871]
[1750432804619,6.942,2503.9,2503.8,0.79871]
[1750432805221,6.942,2503.9,2503.7,0.79873]
[1750432805415,0.79878,2503.6,2503.3,3.2078]
[1750432805617,0.79882,2503.5,2503.4,0.79884]
[1750432805818,7.74082,2503.5,2503.1,1.973]
[1750432806121,7.74082,2503.5,2503.3,0.79886]
[1750432806122,25.453,2503.4,2503.3,0.79886]
[1750432806430,26.25184,2503.4,2503.3,0.79886]
[1750432806922,25.453,2503.4,2503.3,0.79886]
[1750432807527,26.25184,2503.4,2503.3,0.79886]
[1750432807733,25.453,2503.4,2503.3,0.79886]
[1750432807915,0.79884,2503.4,2503.3,0.79886]
[1750432808121,25.448,2503.4,2503.3,0.79886]
[1750432808427,26.24684,2503.4,2503.3,0.79886]
[1750432808732,26.24684,2503.4,2503.0,6.53499]
[1750432808733,0.79901,2502.9,2502.8,0.79902]
[1750432809025,26.24701,2502.9,2502.8,0.79902]
[1750432809733,0.79906,2502.7,2502.6,1.42738]
[1750432809917,7.74006,2502.7,2502.6,0.6283]
[1750432810229,7.74006,2502.7,2502.6,0.7991]
[1750432810926,0.79919,2502.3,2502.2,4.00701]
[1750432811135,0.79919,2502.3,2502.2,0.79921]
[1750432811518,0.79922,2502.2,2502.1,4.00703]
[1750432811724,0.79926,2502.1,2502.0,1.47977]
[1750432811925,0.79926,2502.1,2501.8,1.2674]
[1750432811926,0.79932,2501.9,2501.8,1.2674]
[1750432812125,0.79932,2501.9,2501.8,0.79934]
[1750432812323,7.71732,2501.9,2501.8,0.79935]
[1750432812524,7.71733,2501.9,2501.8,0.79935]
[1750432813033,7.71733,2501.9,2501.7,1.47986]
[1750432813034,0.79935,2501.8,2501.7,1.47986]
[1750432813233,0.79938,2501.7,2501.6,4.00719]
[1750432813735,26.24037,2501.8,2501.7,0.79938]
[1750432813924,0.79938,2501.7,2501.6,4.00719]
[1750432814428,26.24038,2501.8,2501.7,0.79938]
[1750432814630,0.79938,2501.7,2501.6,3.2078]
[1750432815031,0.79938,2501.7,2501.6,4.00722]
[1750432816236,0.79938,2501.7,2501.6,3.2078]
[1750432816427,3.34821117,2501.7,2501.6,3.2078]
[1750432816834,2.54883117,2501.7,2501.2,3.2078]
[1750432817027,1.99871,2501.4,2500.8,3.2078]
[1750432817337,0.79962,2501.0,2500.9,0.79961]
[1750432817631,26.23962,2501.0,2500.9,0.79961]
[1750432817931,0.79964,2500.9,2500.8,4.00745]
[1750432818130,7.71964,2500.9,2500.8,4.00745]
[1750432818329,7.71964,2500.9,2500.8,0.79965]
[1750432818530,0.79973,2500.7,2500.6,0.79971]
[1750432818730,25.444,2500.7,2500.6,0.79971]
[1750432819329,25.444,2500.7,2500.6,0.79974]
[1750432819534,26.24374,2500.7,2500.6,0.79974]
[1750432819728,25.444,2500.7,2500.6,0.79974]
[1750432819936,26.2437,2500.7,2500.6,0.79974]
[1750432820432,3.2078,2501.2,2500.5,3.2078]
[1750432820637,0.79969,2500.8,2500.7,0.79968]
[1750432820930,26.23969,2500.8,2500.7,0.79968]
[1750432821328,25.44,2500.8,2500.5,3.2078]
[1750432821529,8.97293,2500.7,2500.6,0.79971]
[1750432821725,6.921,2500.7,2500.6,0.79971]
[1750432823232,0.79974,2500.6,2500.5,4.00756]
[1750432823733,1.2592,2500.8,2500.5,3.2078]
[1750432824042,2.0589,2500.8,2500.7,0.7997]
[1750432824232,3.2078,2501.2,2500.9,0.79961]
[1750432824433,0.79968,2500.9,2500.8,0.79966]
[1750432824937,33.16168,2500.9,2500.8,0.79966]
[1750432825437,32.362,2500.9,2500.5,3.2078]
[1750432825627,14.74434586,2500.8,2500.2,3.2078]
[1750432825831,0.79979,2500.5,2500.4,0.79977]
[1750432826036,0.79979,2500.5,2500.2,5.20746]
[1750432826037,0.79983,2500.4,2500.3,0.79981]
[1750432826342,0.79983,2500.3,2500.2,3.2078]
[1750432826531,33.16187,2500.3,2499.9,3.2078]
[1750432826738,33.16187,2500.3,2500.2,0.79985]
[1750432827043,0.79993,2500.1,2500.0,0.79991]
[1750432827340,0.79989,2500.2,2500.1,0.79987]
[1750432828733,33.16589,2500.2,2500.1,0.79987]
[1750432829340,33.16586,2500.2,2500.1,0.79987]
[1750432829731,0.7998,2500.5,2500.4,0.7998]
[1750432829936,33.1638,2500.5,2500.4,0.7998]
[1750432830131,6.924,2501.0,2500.4,15.27734586]
[1750432830332,25.438,2501.2,2501.0,0.7996]
[1750432830532,0.79961,2501.0,2500.9,0.79963]
[1750432831042,0.79967,2500.9,2500.8,0.79966]
[1750432831240,26.23867,2500.9,2500.8,0.79966]
[1750432831741,26.23867,2500.9,2500.5,1.43474]
[1750432831742,0.79974,2500.6,2500.5,1.43474]
[1750432831939,26.23874,2500.6,2500.5,1.43474]
[1750432832532,37.71571586,2500.6,2500.3,3.2078]
[1750432832740,0.7998,2500.4,2500.3,3.2078]
[1750432833144,2.0912,2500.4,2500.3,3.2078]
[1750432834034,2.0912,2500.4,2499.9,3.2078]
[1750432834035,0.79994,2500.0,2499.9,3.2078]
[1750432834239,25.438,2500.0,2499.9,4.00776]
[1750432834448,26.23793,2500.0,2499.9,4.00776]
[1750432834645,26.23793,2500.0,2499.9,3.2078]
[1750432834944,25.438,2500.0,2499.9,4.00776]
[1750432835138,26.23793,2500.0,2499.9,4.00776]
[1750432835642,25.438,2500.0,2499.9,4.00776]
[1750432835847,26.23793,2500.0,2499.9,4.00776]
[1750432836035,25.438,2500.0,2499.9,4.00776]
[1750432836442,30.438,2500.0,2498.8,3.2078]
[1750432836642,4.0079,2499.5,2499.4,0.80012]
[1750432836845,4.0079,2499.5,2499.3,0.80013]
[1750432836846,0.80012,2499.4,2499.3,0.80013]
[1750432837344,0.80013,2499.4,2499.3,0.80013]
[1750432837548,35.5708,2499.5,2498.9,3.95228]
[1750432837750,32.362,2499.4,2498.9,3.95225]
[1750432837949,3.2078,2499.5,2499.4,0.80012]
[1750432838144,25.436,2499.6,2499.4,0.80012]
[1750432838342,25.436,2499.6,2499.5,1.46299]
[1750432838545,3.2078,2499.8,2499.7,0.80002]
[1750432838748,36.77909696,2499.8,2499.7,0.80002]
[1750432838947,36.77909696,2499.8,2499.5,1.9788]
[1750432839146,0.80004,2499.7,2499.6,0.80003]
[1750432840052,0.80005,2499.7,2499.5,0.6629]
[1750432840246,35.5698,2499.8,2499.5,0.6629]
[1750432840247,10.1338,2499.8,2499.7,0.80002]
[1750432840448,37.58078639,2499.8,2499.7,0.80002]
[1750432840951,36.78079639,2499.8,2499.6,0.80003]
[1750432841145,36.37082,2499.8,2499.7,0.80002]
[1750432841345,36.37082,2499.8,2499.3,0.6629]
[1750432841346,36.7813422,2499.8,2499.3,0.6629]
[1750432841651,3.2078,2499.5,2498.9,3.28407]
[1750432841851,32.362,2499.4,2499.0,0.6376]
[1750432842045,35.10804,2499.4,2499.3,0.80015]
[1750432842641,33.0386,2499.4,2499.3,0.80015]
[1750432842853,3.2078,2499.5,2499.4,0.80012]
[1750432843040,28.6458,2499.5,2499.4,0.80012]
[1750432843243,25.438,2499.5,2499.4,0.80012]
[1750432843454,28.6458,2499.5,2499.4,0.80012]
[1750432844254,35.5518,2499.5,2499.4,0.80012]
[1750432845347,36.76688251,2499.5,2499.4,0.80012]
[1750432845750,3.2078,2499.5,2499.4,0.80012]
[1750432845953,1.9459,2500.0,2499.7,0.80003]
[1750432845954,4.00779,2499.8,2499.7,0.80003]
[1750432846156,36.7661425,2499.8,2499.6,0.80003]
[1750432846350,1.2153425,2499.7,2499.6,0.80003]
[1750432846654,33.5593425,2499.7,2499.6,0.80003]
[1750432846855,26.6523425,2499.7,2499.6,0.80003]
[1750432847056,26.6523425,2499.7,2499.6,2.13493]
[1750432847752,1.2153425,2499.7,2499.6,12.41227586]
[1750432847952,28.6438,2499.8,2499.7,0.80003]
[1750432848558,3.2078,2500.2,2500.1,0.7999]
[1750432848749,1.21717492,2500.2,2500.1,0.7999]
[1750432849166,28.6428,2500.5,2500.4,0.7998]
[1750432849352,26.64963996,2500.5,2500.4,0.7998]
[1750432850249,26.64863996,2500.5,2500.4,0.7998]
[1750432851556,1.21463996,2500.5,2500.4,0.7998]
[1750432851854,27.77504721,2501.3,2501.2,0.79955]
[1750432852053,3.2078,2501.4,2501.3,0.79951]
[1750432852262,28.6388,2501.4,2501.3,0.79951]
[1750432852765,28.6378,2501.4,2501.3,0.79951]
[1750432852956,28.6378,2501.4,2501.2,0.79952]
[1750432853161,28.6378,2501.4,2501.3,0.79951]
[1750432853359,29.9031,2501.4,2501.3,0.79951]
[1750432853652,29.9031,2501.4,2500.7,0.7997]
[1750432853653,0.7997,2500.8,2500.7,0.7997]
[1750432853853,29.4375,2500.8,2500.7,0.7997]
[1750432854057,3.2078,2500.8,2500.7,0.7997]
[1750432854260,28.6378,2500.8,2500.7,0.7997]
[1750432854762,3.2078,2500.8,2500.7,0.7997]
[1750432855262,10.1128,2501.2,2501.1,0.79958]
[1750432855454,35.5418,2501.2,2501.1,0.79958]
[1750432856162,28.6328,2501.2,2501.1,0.79958]
[1750432856665,3.8746,2501.5,2501.4,0.79948]
[1750432856866,3.2078,2501.5,2501.4,0.79948]
[1750432857060,28.6318,2501.5,2501.4,0.79948]
[1750432857254,28.6318,2501.5,2501.3,1.4352]
[1750432857565,29.43127,2501.5,2501.4,0.79948]
[1750432858182,0.79949,2501.4,2501.3,0.79949]
[1750432858463,28.6318,2501.5,2501.0,0.6357]
[1750432858768,3.2078,2501.2,2501.1,0.79955]
[1750432858969,28.6278,2501.2,2501.1,0.79955]
[1750432859565,29.42735,2501.2,2501.1,0.79955]
[1750432859763,28.6278,2501.2,2501.1,0.79955]
[1750432860371,29.42735,2501.2,2501.1,0.79955]
[1750432860564,0.79958,2501.1,2501.0,0.7996]
[1750432861069,15.27734586,2501.1,2500.0,5.20757]
[1750432861266,3.2078,2500.1,2499.9,1.44343]
[1750432861468,28.6238,2500.1,2500.0,0.79993]
[1750432861673,28.6238,2500.1,2500.0,1.3722]
[1750432861966,26.2159,2500.1,2500.0,0.79993]
[1750432862173,25.416,2500.1,2500.0,0.79993]
[1750432862770,26.2159,2500.1,2500.0,0.79993]
[1750432862978,29.4237,2500.1,2500.0,0.79993]
[1750432863665,0.79994,2500.0,2499.9,0.79993]
[1750432864373,28.6238,2500.1,2500.0,0.79993]
[1750432865965,29.4237,2500.1,2500.0,0.79993]
[1750432866471,0.79996,2500.0,2499.9,0.79994]
[1750432866668,2.12446,2500.0,2499.9,0.79994]
[1750432868369,1.3245,2500.0,2499.9,0.79994]
[1750432868870,2.12443,2500.0,2499.9,0.79994]
[1750432869266,9.02943,2500.0,2499.9,0.79994]
[1750432869666,8.2295,2500.0,2499.9,0.79994]
[1750432870067,9.02943,2500.0,2499.9,0.79994]
[1750432870369,10.91272,2500.1,2500.0,0.79993]
[1750432870569,36.32572,2500.1,2500.0,0.79993]
[1750432874078,0.79997,2500.0,2499.9,0.79994]
[1750432874374,2.09667,2500.0,2499.3,2.00039]
[1750432874569,26.20999,2499.9,2499.8,0.79996]
[1750432874775,28.6178,2499.9,2499.8,0.79996]
[1750432875078,29.41776,2499.9,2499.8,0.79996]
[1750432876075,10.0988,2500.2,2500.1,0.79987]
[1750432876380,35.5088,2500.2,2500.1,0.79987]
[1750432876771,36.30868,2500.2,2500.1,0.79987]
[1750432876966,0.79994,2500.1,2500.0,0.7999]
[1750432877980,36.30869,2500.2,2500.1,0.7999]
[1750432879279,35.5088,2500.2,2500.1,0.7999]
[1750432879682,36.30867,2500.2,2500.1,0.7999]
[1750432880078,0.79996,2500.0,2499.9,0.79993]
[1750432880284,0.79996,2499.9,2499.8,0.79997]
[1750432880584,4.00776,2499.9,2499.8,0.79997]
[1750432880773,3.2078,2499.9,2499.8,0.79997]
[1750432881186,25.405,2499.9,2499.8,0.79997]
[1750432881388,28.6128,2499.9,2499.8,0.79997]
[1750432882280,29.41276,2499.9,2499.8,0.79997]
[1750432882792,28.6128,2499.9,2499.8,0.79997]
[1750432884485,25.405,2499.9,2499.8,0.79997]
[1750432884687,28.6128,2499.9,2499.8,0.79997]
[1750432884888,29.41276,2499.9,2499.8,0.79997]
[1750432885181,0.80006,2499.7,2499.6,0.80004]
[1750432885374,26.20106,2499.7,2499.6,0.80004]
[1750432885978,25.401,2499.7,2499.6,0.80004]
[1750432886786,3.2078,2499.9,2499.5,2.678]
[1750432886985,10.0998,2499.9,2499.8,0.79999]
[1750432887185,28.6058,2499.9,2499.8,0.79999]
[1750432887984,29.40576,2499.9,2499.8,0.79999]
[1750432888184,0.80003,2499.8,2499.7,0.8]
[1750432889587,1.21505556,2499.8,2499.7,0.8]
[1750432890487,2.01504556,2499.8,2499.7,0.8]
[1750432890892,1.21505556,2499.8,2499.2,4.5085]
[1750432891093,4.00791,2499.5,2499.4,0.80008]
[1750432891389,29.81685556,2499.5,2499.4,0.80008]
[1750432891587,30.61694556,2499.5,2499.4,0.80008]
[1750432892182,32.08594556,2499.5,2499.4,0.80008]
[1750432892385,31.28585556,2499.5,2499.4,0.80008]
[1750432892584,1.469,2499.5,2499.4,11.07742586]
[1750432892784,1.469,2499.5,2499.4,16.07742586]
[1750432892985,3.2078,2500.2,2499.4,18.48514586]
[1750432893294,4.00768,2500.2,2500.1,0.7999]
[1750432893495,37.50512685,2500.2,2500.1,0.7999]
[1750432893686,0.79996,2499.9,2499.8,0.6696]
[1750432893989,30.61317827,2499.9,2499.8,0.6696]
[1750432894186,30.61319827,2499.9,2499.8,0.79999]
[1750432895392,29.81221827,2499.9,2499.8,0.79999]
[1750432895591,30.61217827,2499.9,2499.8,0.79999]
[1750432895983,0.80003,2499.8,2499.7,0.80001]
[1750432896187,2.01440435,2499.8,2499.7,0.80001]
[1750432896490,1.21437435,2499.8,2499.7,0.80001]
[1750432896691,29.39778,2499.9,2499.8,0.79999]
[1750432896892,30.61220329,2499.9,2499.8,0.79999]
[1750432897798,0.80002,2499.8,2499.7,0.79999]
[1750432898095,29.39779,2499.9,2499.8,0.79999]
[1750432898292,30.61233265,2499.9,2499.8,0.79999]
[1750432899188,30.61233265,2499.9,2499.7,0.80001]
[1750432899189,0.80003,2499.8,2499.7,0.80001]
[1750432899392,2.01440787,2499.8,2499.7,0.80001]
[1750432899593,3.21440787,2499.8,2499.2,1.3654]
[1750432899791,3.2078,2499.5,2499.2,2.0465]
[1750432899991,4.00793,2499.5,2499.4,0.80012]
[1750432900203,30.60470852,2499.5,2499.4,0.80012]
[1750432901393,26.59677852,2499.5,2499.4,0.80012]
[1750432901594,25.383,2499.5,2499.4,0.80012]
[1750432902399,25.379,2499.5,2499.4,0.80012]
[1750432903700,29.38689,2499.5,2499.4,0.80012]
[1750432903900,28.5868,2499.5,2499.4,0.80012]
[1750432904099,25.379,2499.5,2499.4,0.80012]
[1750432904300,26.17909,2499.5,2499.4,0.80012]
[1750432904701,29.38689,2499.5,2499.4,0.80012]
[1750432904900,28.5868,2499.5,2499.4,0.80012]
[1750432906802,29.38689,2499.5,2499.4,0.80012]
[1750432907004,29.38689,2499.5,2499.3,0.80013]
[1750432907005,0.80015,2499.4,2499.3,0.80013]
[1750432907202,0.80015,2499.4,2499.3,0.80015]
[1750432907599,0.80017,2499.3,2499.2,0.80016]
[1750432907803,0.8002,2499.2,2499.1,0.80019]
[1750432908004,26.17318,2499.3,2499.2,0.80019]
[1750432908309,26.17315,2499.3,2499.2,0.80019]
[1750432908507,25.373,2499.3,2499.2,0.80019]
[1750432908807,3.2078,2499.5,2499.4,0.80012]
[1750432909008,35.4508,2499.5,2499.4,0.80012]
[1750432909203,3.2078,2499.5,2499.4,0.80012]
[1750432909505,35.4488,2499.5,2499.4,0.80012]
[1750432910302,3.2078,2499.5,2499.4,0.80012]
[1750432910504,28.5768,2499.5,2499.4,0.80012]
[1750432910898,28.5768,2499.5,2499.4,1.46662]
[1750432912611,25.369,2499.5,2499.4,1.46662]
[1750432913308,0.5936,2499.7,2499.6,0.80006]